bitfinex-derivatives/quotes_SOLF0:USTF0_20250415
["timestamp","ask_amount","ask_price","bid_price","bid_amount"]
[1744688736730,0.05391406,130.38,130.36,3.1684976]
[1744688737030,0.05391406,130.38,130.37,3.1684976]
[1744688739431,0.05391406,130.38,130.36,7.6721]
[1744688739735,0.05391406,130.38,130.37,3.17019549]
[1744688740039,7.72511406,130.38,130.37,3.17019549]
[1744688740237,7.72511406,130.38,130.35,37.27183862]
[1744688740537,7.72511406,130.38,130.36,3.17125091]
[1744688740730,7.72511406,130.38,130.35,37.27183862]
[1744688740926,7.72511406,130.38,130.36,3.17126178]
[1744688741137,7.72511406,130.38,130.35,37.27183862]
[1744688741337,7.72511406,130.38,130.36,3.1713224]
[1744688741538,7.72511406,130.38,130.35,37.27183862]
[1744688741837,7.72511406,130.38,130.36,3.17233776]
[1744688742032,7.72511406,130.38,130.35,37.27183862]
[1744688742227,7.72511406,130.38,130.36,3.17347908]
[1744688742432,7.72511406,130.38,130.35,37.27183862]
[1744688742638,7.72511406,130.38,130.36,3.17327897]
[1744688742841,7.6719,130.37,130.35,29.59903862]
[1744688743035,7.6719,130.37,130.36,3.17383236]
[1744688743332,12.46608579,130.37,130.36,3.17383236]
[1744688744838,7.6724,130.36,130.35,0.05903862]
[1744688745133,12.46658579,130.36,130.35,0.05903862]
[1744688745837,7.6724,130.36,130.35,0.05903862]
[1744688749235,12.46658579,130.36,130.35,0.05903862]
[1744688752444,7.6748,130.32,130.29,29.52]
[1744688752643,7.6748,130.32,130.28,4.79418579]
[1744688752936,7.6754,130.31,130.28,4.79418579]
[1744688753142,4.79418579,130.33,130.28,4.79418579]
[1744688753443,7.7254278,130.32,130.29,0.05576671]
[1744688754745,4.79418579,130.39,130.31,4.79418579]
[1744688754939,4.79418579,130.38,130.33,4.79418579]
[1744688755344,4.79418579,130.37,130.32,12.46878579]
[1744688755748,0.04924563,130.36,130.33,0.05813023]
[1744688755935,7.72204563,130.36,130.33,0.05813023]
[1744688758346,7.72204563,130.36,130.33,7.73223023]
[1744688759246,7.72204563,130.36,130.33,0.05813023]
[1744688760845,4.79418579,130.35,130.33,0.05813023]
[1744688761049,4.79418579,130.34,130.33,0.05813023]
[1744688761439,4.79418579,130.34,130.28,12.47098579]
[1744688761645,4.79418579,130.32,130.27,29.52]
[1744688761946,4.79418579,130.32,130.27,34.31418579]
[1744688762147,7.6756,130.31,130.27,41.99148579]
[1744688762448,4.79418579,130.33,130.28,4.79418579]
[1744688762649,0.05419827,130.3,130.28,4.85071847]
[1744688762851,0.05419827,130.3,130.28,0.05653268]
[1744688763249,0.05419827,130.3,130.28,12.52771847]
[1744688764552,0.05419827,130.3,130.29,7.6765]
[1744688764952,0.05419827,130.3,130.29,12.47068579]
[1744688765152,4.79418579,130.36,130.31,7.6753]
[1744688765352,7.6733,130.35,130.31,12.46948579]
[1744688765653,4.79418579,130.37,130.32,12.46848579]
[1744688765852,4.79418579,130.37,130.32,4.79418579]
[1744688766148,0.05401096,130.36,130.32,4.79418579]
[1744688766451,0.05401096,130.36,130.33,0.05573477]
[1744688767853,7.673,130.35,130.33,0.05573477]
[1744688768658,7.72671096,130.36,130.33,7.72983477]
[1744688769453,7.673,130.35,130.33,0.05573477]
[1744688769654,0.05401096,130.36,130.33,0.05573477]
[1744688770351,7.72671096,130.36,130.33,0.05573477]
[1744688770552,4.84819675,130.36,130.33,0.05573477]
[1744688771755,7.6733,130.35,130.33,0.05573477]
[1744688776662,12.52079675,130.36,130.33,0.05573477]
[1744688776960,12.52079675,130.36,130.33,7.72983477]
[1744688777362,0.05401096,130.36,130.33,0.05573477]
[1744688777558,0.05401096,130.36,130.34,7.6732]
[1744688780963,0.05401096,130.36,130.34,4.79418579]
[1744688781465,0.05401096,130.36,130.35,7.673]
[1744688783971,0.05401096,130.36,130.34,12.46748579]
[1744688784966,0.05401096,130.36,130.35,12.46718579]
[1744688785466,0.05401096,130.36,130.35,4.79418579]
[1744688785666,0.05401096,130.36,130.34,12.46748579]
[1744688786267,0.05401096,130.36,130.33,37.22973477]
[1744688786477,4.79418579,130.34,130.33,0.05573477]
[1744688786770,12.46778579,130.34,130.33,0.05573477]
[1744688787071,4.84819675,130.36,130.33,0.05573477]
[1744688787370,0.05401096,130.36,130.33,12.52402056]
[1744688787570,0.05401096,130.36,130.35,4.79418579]
[1744688789173,0.05401096,130.36,130.35,12.46718579]
[1744688797185,4.79418579,130.41,130.37,7.6716]
[1744688797386,4.79418579,130.41,130.37,12.46578579]
[1744688797688,7.6698,130.41,130.37,12.46578579]
[1744688798386,7.72503571,130.4,130.38,0.05533133]
[1744688798985,7.6706,130.39,130.38,0.05533133]
[1744688800291,12.46478579,130.39,130.38,0.05533133]
[1744688802187,34.27418579,130.39,130.27,552.32]
[1744688802487,4.79418579,130.36,130.31,7.6749]
[1744688802792,12.46748579,130.35,130.31,7.6749]
[1744688803191,0.04911245,130.34,130.32,0.05484448]
[1744688804493,7.72281245,130.34,130.32,0.05484448]
[1744688805994,0.04911245,130.34,130.32,0.05484448]
[1744688808395,0.04911245,130.34,130.32,7.72944448]
[1744688808694,0.04911245,130.34,130.32,12.52363027]
[1744688809096,0.04911245,130.34,130.32,7.72944448]
[1744688809295,0.04911245,130.34,130.32,12.52363027]
[1744688817104,0.04911245,130.34,130.33,4.79418579]
[1744688817299,0.04911245,130.34,130.33,12.46838579]
[1744688817502,34.25418579,130.4,130.33,4.79418579]
[1744688817705,34.25418579,130.4,130.35,4.79418579]
[1744688818203,7.6715,130.38,130.35,12.46688579]
[1744688818603,7.72285149,130.38,130.35,12.52046481]
[1744688819604,7.672,130.37,130.35,0.05357902]
[1744688819805,0.05135149,130.38,130.35,0.05357902]
[1744688819998,4.84553728,130.38,130.35,0.05357902]
[1744688820604,7.6724,130.36,130.35,0.05357902]
[1744688822007,4.84553728,130.38,130.35,0.05357902]
[1744688822304,0.05135149,130.38,130.35,0.05357902]
[1744688822506,0.05135149,130.38,130.35,7.72657902]
[1744688822695,7.72295149,130.38,130.35,7.72657902]
[1744688826911,0.05135149,130.38,130.36,7.672]
[1744688827109,0.05135149,130.38,130.36,12.46618579]
[1744688828309,0.05135149,130.38,130.37,7.6718]
[1744688828515,0.05135149,130.38,130.37,12.46598579]
[1744688830703,0.05135149,130.38,130.35,0.05357902]
[1744688830903,0.05135149,130.38,130.35,4.84776481]
[1744688831413,7.72285149,130.38,130.35,12.52046481]
[1744688831614,7.72285149,130.38,130.35,4.84776481]
[1744688831814,0.05135149,130.38,130.35,4.84776481]
[1744688832114,0.05135149,130.38,130.35,0.05357902]
[1744688832315,7.6719,130.37,130.35,0.05357902]
[1744688832615,0.05135149,130.38,130.35,0.05357902]
[1744688832913,4.84553728,130.38,130.35,0.05357902]
[1744688834416,7.6724,130.36,130.35,0.05357902]
[1744688835815,12.46658579,130.36,130.35,0.05357902]
[1744688838312,4.79418579,130.36,130.3,4.79418579]
[1744688838519,4.79418579,130.34,130.29,34.23418579]
[1744688838815,7.675,130.32,130.29,41.91038579]
[1744688839014,4.79418579,130.34,130.29,41.91038579]
[1744688839420,0.04875526,130.33,130.3,0.05539679]
[1744688841222,7.6748,130.32,130.3,0.05539679]
[1744688842721,0.04875526,130.33,130.31,4.79418579]
[1744688843017,6.93998579,130.39,130.32,34.23418579]
[1744688843220,6.93998579,130.39,130.35,4.79418579]
[1744688843521,6.93998579,130.39,130.34,4.79418579]
[1744688843722,4.79418579,130.38,130.32,29.44]
[1744688843923,7.673,130.35,130.34,0.05545117]
[1744688845523,7.73086052,130.36,130.34,0.05545117]
[1744688845725,0.05836052,130.36,130.34,0.05545117]
[1744688846023,7.73096052,130.36,130.34,0.05545117]
[1744688846423,0.05836052,130.36,130.34,0.05545117]
[1744688846623,7.673,130.35,130.34,0.05545117]
[1744688848834,12.46718579,130.35,130.34,0.05545117]
[1744688849032,4.79418579,130.35,130.29,4.79418579]
[1744688849334,4.79418579,130.33,130.28,37.1169]
[1744688849536,4.79418579,130.32,130.28,29.44]
[1744688850037,7.72463655,130.31,130.29,0.04879558]
[1744688850639,7.6759,130.3,130.29,0.04879558]
[1744688852737,12.47008579,130.3,130.29,0.04879558]
[1744688853441,7.6775,130.28,130.25,34.23418579]
[1744688853644,7.6775,130.28,130.25,29.44]
[1744688854540,7.72964325,130.28,130.25,29.4925119]
[1744688854839,0.05214325,130.28,130.27,4.79418579]
[1744688855241,7.6748,130.32,130.28,7.6771]
[1744688855441,7.6748,130.32,130.29,4.79418579]
[1744688856444,0.05155286,130.32,130.29,4.84993135]
[1744688856744,0.05155286,130.32,130.29,12.52633135]
[1744688856939,0.05155286,130.32,130.29,4.84993135]
[1744688857342,7.72635286,130.32,130.29,4.84993135]
[1744688857944,7.72635286,130.32,130.29,0.05574556]
[1744688858242,7.72635286,130.32,130.29,4.84993135]
[1744688859543,0.05155286,130.32,130.29,12.52613135]
[1744688860044,7.72645286,130.32,130.29,12.52613135]
[1744688860943,0.05155286,130.32,130.29,4.84993135]
[1744688861439,0.05155286,130.32,130.3,7.6758]
[1744688861742,0.05155286,130.32,130.29,4.84993135]
[1744688861743,0.05155286,130.32,130.31,4.79418579]
[1744688861945,4.79418579,130.38,130.31,34.23418579]
[1744688862245,7.6721,130.37,130.33,12.46798579]
[1744688862744,7.6725,130.36,130.33,4.79418579]
[1744688862937,7.72273654,130.36,130.33,4.84740132]
[1744688863138,7.72273654,130.36,130.33,0.05321553]
[1744688864437,7.72273654,130.36,130.33,7.72731553]
[1744688864846,0.05023654,130.36,130.33,7.72731553]
[1744688866346,7.72263654,130.36,130.33,7.72731553]
[1744688866546,7.72263654,130.36,130.33,0.05321553]
[1744688867249,7.673,130.35,130.33,0.05321553]
[1744688867549,0.05023654,130.36,130.33,0.05321553]
[1744688868147,7.72293654,130.36,130.33,0.05321553]
[1744688873146,0.05023654,130.36,130.33,0.05321553]
[1744688873751,0.05023654,130.36,130.33,7.72711553]
[1744688873952,0.05023654,130.36,130.34,29.42]
[1744688875155,0.05023654,130.36,130.35,7.673]
[1744688875455,7.671,130.39,130.34,29.42]
[1744688876557,0.05818884,130.38,130.35,7.6729]
[1744688876857,0.05818884,130.38,130.35,0.05105575]
[1744688877555,0.05818884,130.38,130.36,7.6723]
[1744688877853,0.05818884,130.38,130.35,0.05105575]
[1744688878158,0.05818884,130.38,130.35,7.72375575]
[1744688878351,0.05818884,130.38,130.35,0.05105575]
[1744688879155,0.05818884,130.38,130.36,7.6724]
[1744688880049,0.05818884,130.38,130.35,7.72375575]
[1744688880551,7.72958884,130.38,130.35,7.72375575]
[1744688880758,0.05818884,130.38,130.35,0.05105575]
[1744688882157,7.6721,130.37,130.35,0.05105575]
[1744688882354,0.05818884,130.38,130.35,0.05105575]
[1744688883559,7.6724,130.36,130.35,0.05105575]
[1744688885261,12.47095843,130.36,130.35,0.05105575]
[1744688885560,0.05818884,130.38,130.35,4.84961418]
[1744688886060,0.05818884,130.38,130.36,7.6719]
[1744688886960,0.05818884,130.38,130.35,12.52241418]
[1744688887358,0.05818884,130.38,130.35,4.84961418]
[1744688887659,0.05818884,130.38,130.36,7.6723]
[1744688887957,0.05818884,130.38,130.35,4.84961418]
[1744688888462,0.05818884,130.38,130.35,12.52241418]
[1744688889158,0.05818884,130.38,130.35,4.84961418]
[1744688889355,0.05818884,130.38,130.37,4.79855843]
[1744688889756,0.05818884,130.38,130.37,12.47035843]
[1744688892564,0.05818884,130.38,130.37,7.6718]
[1744688893665,0.05818884,130.38,130.35,0.05105575]
[1744688894065,0.05818884,130.38,130.35,7.72355575]
[1744688894762,7.72948884,130.38,130.35,7.72355575]
[1744688894963,0.05818884,130.38,130.35,4.84961418]
[1744688896163,0.05818884,130.38,130.36,7.6724]
[1744688897863,0.05818884,130.38,130.35,12.52231418]
[1744688898762,0.05818884,130.38,130.36,7.6723]
[1744688905868,0.05818884,130.38,130.37,7.6718]
[1744688909369,0.05818884,130.38,130.36,12.47065843]
[1744688909669,0.05818884,130.38,130.36,4.79855843]
[1744688909972,4.85674727,130.38,130.35,0.05105575]
[1744688910569,0.05818884,130.38,130.35,0.05105575]
[1744688911067,7.72978884,130.38,130.35,0.05105575]
[1744688911775,7.72978884,130.38,130.35,7.72405575]
[1744688912071,0.05818884,130.38,130.35,7.72405575]
[1744688913571,0.05818884,130.38,130.36,29.4]
[1744688914475,0.05818884,130.38,130.36,37.0723]
[1744688916174,0.05818884,130.38,130.36,41.87085843]
[1744688916373,0.05818884,130.38,130.37,7.6718]
[1744688918570,0.05818884,130.38,130.37,12.47035843]
[1744688918777,4.79855843,130.43,130.39,7.6701]
[1744688919277,7.6698,130.41,130.38,12.46955843]
[1744688919680,7.6698,130.41,130.38,7.671]
[1744688919877,7.6698,130.41,130.38,7.72172371]
[1744688923180,4.79855843,130.41,130.38,0.05072371]
[1744688923377,4.79855843,130.39,130.38,0.05072371]
[1744688923580,4.79855843,130.39,130.35,29.38]
[1744688923781,7.6724,130.36,130.35,29.38]
[1744688923978,7.6724,130.36,130.33,7.6738]
[1744688924779,7.7294994,130.36,130.33,7.731229]
[1744688924980,0.0570994,130.36,130.33,7.731229]
[1744688925179,0.0570994,130.36,130.33,12.52978743]
[1744688927383,0.0570994,130.36,130.34,7.6736]
[1744688927583,0.0570994,130.36,130.34,12.47215843]
[1744688932390,0.0570994,130.36,130.35,7.673]
[1744688932597,0.0570994,130.36,130.35,41.83155843]
[1744688935591,0.0570994,130.36,130.35,37.033]
[1744688937887,7.67,130.41,130.35,29.36]
[1744688938089,7.67,130.41,130.38,4.79855843]
[1744688938294,7.6692,130.42,130.38,34.15855843]
[1744688938991,7.6692,130.42,130.39,0.05655562]
[1744688943993,7.6695,130.41,130.39,0.05655562]
[1744688944791,7.67,130.4,130.39,0.05655562]
[1744688946992,7.672,130.37,130.34,41.83205843]
[1744688947595,7.6726,130.36,130.34,29.36]
[1744688948096,7.73075746,130.36,130.34,29.41411486]
[1744688948600,0.05815746,130.36,130.34,29.41411486]
[1744688948899,0.05815746,130.36,130.34,0.05411486]
[1744688949495,7.73095746,130.36,130.34,0.05411486]
[1744688950999,0.05815746,130.36,130.34,4.85267329]
[1744688951600,0.05815746,130.36,130.34,12.52607329]
[1744688952402,0.05815746,130.36,130.34,4.85267329]
[1744688953697,0.05815746,130.36,130.34,12.52627329]
[1744688953898,0.05815746,130.36,130.35,4.79855843]
[1744688954703,31.4564,130.44,130.35,4.79855843]
[1744688955002,4.79855843,130.43,130.38,4.79855843]
[1744688955191,7.6693,130.42,130.39,4.79855843]
[1744688955902,7.6693,130.42,130.39,4.85496267]
[1744688958301,7.6693,130.42,130.39,0.05640424]
[1744688962312,29.36,130.44,130.4,4.79855843]
[1744688962511,8.86535843,130.45,130.4,4.79855843]
[1744688962812,7.6687,130.43,130.4,4.79855843]
[1744688964809,7.6687,130.43,130.4,12.46835843]
[1744688965014,16.53275843,130.45,130.4,4.79855843]
[1744688965207,6.84435843,130.48,130.43,4.79855843]
[1744688965609,6.84435843,130.48,130.44,0.05225651]
[1744688965904,7.6668,130.46,130.44,0.05225651]
[1744688967614,7.6671,130.45,130.44,0.05225651]
[1744688968018,4.79855843,130.45,130.38,586.17855843]
[1744688968219,4.79855843,130.42,130.38,589.0507]
[1744688968414,4.79855843,130.41,130.38,29.34]
[1744688969317,4.84978676,130.41,130.38,29.39727058]
[1744688970218,7.6701,130.4,130.38,29.39727058]
[1744688970618,0.05122833,130.41,130.38,29.39727058]
[1744688970815,7.72102833,130.41,130.38,41.86702901]
[1744688971011,0.05122833,130.41,130.4,4.79855843]
[1744688973518,0.05122833,130.41,130.39,12.46895843]
[1744688973816,0.05122833,130.41,130.4,7.67]
[1744688974121,0.05122833,130.41,130.4,12.46855843]
[1744688977226,1.9805,130.47,130.42,4.79855843]
[1744688977420,7.6669,130.46,130.42,34.11855843]
[1744688977621,1.9805,130.47,130.42,41.78715843]
[1744688977915,1.9805,130.47,130.42,34.11855843]
[1744688978127,1.9805,130.47,130.43,0.05837084]
[1744688978323,1.9805,130.47,130.43,4.85692927]
[1744688978721,6.77905843,130.47,130.43,0.05837084]
[1744688979327,4.79855843,130.46,130.43,0.05837084]
[1744688979522,4.79855843,130.45,130.43,0.05837084]
[1744688979727,4.79855843,130.44,130.43,0.05837084]
[1744688981323,4.79855843,130.44,130.39,29.32]
[1744688981524,4.79855843,130.42,130.39,29.32]
[1744688982024,7.6698,130.41,130.39,29.32]
[1744688982231,4.79855843,130.42,130.39,29.32]
[1744688982531,4.84914818,130.42,130.39,29.36873151]
[1744688983130,7.6698,130.41,130.39,29.36873151]
[1744688986334,4.84914818,130.42,130.35,7.6728]
[1744688986335,4.79855843,130.4,130.35,7.6728]
[1744688986526,4.79855843,130.39,130.35,4.79855843]
[1744688987134,7.6715,130.38,130.35,4.79855843]
[1744688987531,0.05614471,130.38,130.35,4.8541677]
[1744688987733,0.05614471,130.38,130.35,12.5267677]
[1744688989337,0.05614471,130.38,130.36,4.79855843]
[1744688989531,0.05614471,130.38,130.37,4.79855843]
[1744688990036,0.05614471,130.38,130.37,34.11855843]
[1744688990438,0.05614471,130.38,130.37,41.79035843]
[1744688991639,0.05614471,130.38,130.37,34.11855843]
[1744688992043,7.72734471,130.38,130.35,0.05560927]
[1744688992340,4.85470314,130.38,130.35,0.05560927]
[1744688992734,7.6721,130.37,130.35,0.05560927]
[1744688993438,0.05614471,130.38,130.35,4.8541677]
[1744688993741,0.05614471,130.38,130.35,12.5267677]
[1744688993941,0.05614471,130.38,130.35,4.8541677]
[1744688994741,0.05614471,130.38,130.36,29.3]
[1744688995144,0.05614471,130.38,130.36,36.9722]
[1744688998353,0.05614471,130.38,130.36,29.3]
[1744689000455,0.05614471,130.38,130.36,36.9723]
[1744689002951,0.05614471,130.38,130.37,7.6718]
[1744689003157,34.09855843,130.44,130.37,4.79855843]
[1744689003349,4.79855843,130.4,130.36,29.3]
[1744689003551,7.671,130.39,130.36,29.3]
[1744689004048,6.2275,130.43,130.38,4.79855843]
[1744689004252,4.79855843,130.44,130.39,29.3]
[1744689004452,0.05257289,130.42,130.39,29.3527412]
[1744689004750,0.05257289,130.42,130.39,37.0230412]
[1744689005359,0.05257289,130.42,130.4,7.6699]
[1744689005560,0.05257289,130.42,130.4,4.79855843]
[1744689005858,0.05257289,130.42,130.41,7.6695]
[1744689012261,0.05257289,130.42,130.41,12.46805843]
[1744689013558,0.05257289,130.42,130.4,4.79855843]
[1744689013763,4.79855843,130.41,130.39,0.0527412]
[1744689014562,12.46855843,130.41,130.39,0.0527412]
[1744689014864,12.52023132,130.42,130.39,0.0527412]
[1744689015163,7.72167289,130.42,130.39,0.0527412]
[1744689015867,7.6695,130.41,130.39,0.0527412]
[1744689018963,12.52023132,130.42,130.39,7.7233412]
[1744689020870,7.72167289,130.42,130.39,7.7233412]
[1744689021266,7.72167289,130.42,130.39,0.0527412]
[1744689022870,7.72167289,130.42,130.39,7.7232412]
[1744689024472,0.05257289,130.42,130.39,7.7232412]
[1744689025869,0.05257289,130.42,130.4,7.67]
[1744689026568,0.05257289,130.42,130.41,7.6695]
[1744689026774,0.05257289,130.42,130.41,12.46805843]
[1744689028476,0.05257289,130.42,130.41,7.6695]
[1744689029570,0.05257289,130.42,130.41,12.46805843]
[1744689029872,7.6665,130.47,130.44,7.6676]
[1744689030979,12.46505843,130.47,130.43,36.948]
[1744689031275,12.46505843,130.47,130.44,0.05091322]
[1744689031575,12.46505843,130.47,130.44,7.71851322]
[1744689032577,7.6665,130.47,130.44,7.71851322]
[1744689033078,7.6656,130.48,130.45,7.667]
[1744689034582,7.6656,130.48,130.46,7.6665]
[1744689034882,7.6656,130.48,130.44,4.84947165]
[1744689035182,7.6656,130.48,130.45,7.6667]
[1744689037680,29.28,130.51,130.44,4.84947165]
[1744689037888,7.665,130.49,130.46,7.6664]
[1744689038186,7.665,130.49,130.46,7.71563209]
[1744689038382,12.46295843,130.5,130.47,7.6656]
[1744689038574,7.6644,130.5,130.47,7.6656]
[1744689038980,12.46155843,130.52,130.48,7.665]
[1744689039487,4.79855843,130.52,130.49,0.050811]
[1744689040186,7.6636,130.51,130.49,0.050811]
[1744689043485,7.6642,130.5,130.49,0.050811]
[1744689043689,4.79855843,130.5,130.46,29.28]
[1744689043885,4.79855843,130.49,130.46,29.28]
[1744689044083,4.79855843,130.49,130.46,36.9462]
[1744689044786,4.84936943,130.49,130.46,36.9955264]
[1744689045189,12.51426943,130.49,130.46,36.9955264]
[1744689045684,4.84936943,130.49,130.46,29.3293264]
[1744689046282,12.51436943,130.49,130.46,29.3293264]
[1744689046588,0.050811,130.49,130.46,36.9953264]
[1744689046786,0.050811,130.49,130.46,34.12788483]
[1744689047490,0.050811,130.49,130.47,7.6655]
[1744689048288,0.050811,130.49,130.48,7.6653]
[1744689049689,0.050811,130.49,130.47,12.46425843]
[1744689050484,0.050811,130.49,130.48,12.46385843]
[1744689051489,0.050811,130.49,130.48,7.6653]
[1744689051683,0.050811,130.49,130.48,12.46385843]
[1744689051888,7.6628,130.53,130.49,12.46305843]
[1744689052090,7.6628,130.53,130.49,41.72305843]
[1744689052890,7.6628,130.53,130.5,0.05189088]
[1744689055187,4.79855843,130.54,130.5,0.05189088]
[1744689055385,4.79855843,130.51,130.43,4.79855843]
[1744689055587,4.79855843,130.51,130.42,34.03855843]
[1744689055588,4.79855843,130.47,130.42,34.03855843]
[1744689055785,4.79855843,130.47,130.43,7.6679]
[1744689056391,12.46465843,130.47,130.44,0.0534636]
[1744689056590,0.05189088,130.46,130.44,0.0534636]
[1744689059900,0.05189088,130.46,130.44,7.7208636]
[1744689060199,0.05189088,130.46,130.44,0.0534636]
[1744689060697,0.05189088,130.46,130.44,7.7207636]
[1744689061204,4.79855843,130.45,130.44,0.0534636]
[1744689061395,12.46565843,130.45,130.44,0.0534636]
[1744689061596,4.79855843,130.44,130.39,34.03855843]
[1744689061795,4.79855843,130.45,130.4,4.79855843]
[1744689061997,4.79855843,130.46,130.41,4.79855843]
[1744689062298,4.79855843,130.44,130.39,34.03855843]
[1744689062498,4.79855843,130.42,130.39,29.24]
[1744689062797,4.79855843,130.42,130.4,0.04909479]
[1744689064688,7.6689,130.42,130.4,0.04909479]
[1744689064892,4.85557901,130.43,130.4,0.04909479]
[1744689065602,12.52447901,130.43,130.4,0.04909479]
[1744689066201,0.05702058,130.43,130.4,0.04909479]
[1744689066401,0.05702058,130.43,130.42,4.79855843]
[1744689066602,0.05702058,130.43,130.42,34.03855843]
[1744689067204,0.05702058,130.43,130.42,41.70745843]
[1744689069107,7.6661,130.47,130.43,7.6681]
[1744689069503,36.72549081,130.49,130.42,36.72549081]
[1744689069698,36.9051,130.49,130.46,7.6665]
[1744689069902,7.6651,130.49,130.46,7.6665]
[1744689070197,7.7134339,130.49,130.46,7.71723673]
[1744689071409,0.0483339,130.49,130.47,7.6659]
[1744689071610,0.0483339,130.49,130.46,0.05073673]
[1744689071812,0.0483339,130.49,130.46,7.71693673]
[1744689074011,7.7132339,130.49,130.46,7.71693673]
[1744689075113,7.6654,130.48,130.46,0.05073673]
[1744689075309,7.53382471,130.49,130.46,0.05073673]
[1744689075506,7.48549081,130.47,130.46,0.05073673]
[1744689075710,7.48549081,130.47,130.4,29.24]
[1744689076011,7.48549081,130.43,130.37,29.24]
[1744689076711,0.04974281,130.41,130.39,0.05275954]
[1744689077715,7.67,130.4,130.39,0.05275954]
[1744689078010,36.77523362,130.41,130.34,29.24]
[1744689078212,7.6719,130.37,130.34,36.9133]
[1744689078412,7.6719,130.37,130.34,29.24]
[1744689078913,7.7217612,130.37,130.34,29.2942456]
[1744689079712,7.6724,130.36,130.34,29.2942456]
[1744689080322,0.0498612,130.37,130.34,29.2942456]
[1744689081517,0.0498612,130.37,130.35,7.6726]
[1744689085212,0.0498612,130.37,130.36,7.6724]
[1744689091522,0.0498612,130.37,130.34,29.2942456]
[1744689092020,0.0498612,130.37,130.34,36.9674456]
[1744689092421,0.0498612,130.37,130.34,29.2942456]
[1744689092720,0.0498612,130.37,130.36,7.6724]
[1744689095225,0.0498612,130.37,130.35,7.6727]
[1744689095624,0.0498612,130.37,130.34,29.2942456]
[1744689095825,0.0498612,130.37,130.34,36.9675456]
[1744689096628,7.6726,130.36,130.34,29.2942456]
[1744689097023,7.7218612,130.37,130.34,29.2942456]
[1744689097229,12.5194335,130.37,130.34,29.2942456]
[1744689098630,12.5194335,130.37,130.34,36.9677456]
[1744689099332,0.0498612,130.37,130.35,7.6729]
[1744689099527,0.0498612,130.37,130.35,12.4704723]
[1744689103229,4.7975723,130.4,130.34,29.2942456]
[1744689103230,4.7975723,130.42,130.36,4.7975723]
[1744689103436,4.7975723,130.41,130.37,29.24]
[1744689103636,12.4679723,130.4,130.37,36.9116]
[1744689104232,12.4679723,130.4,130.37,36.96487734]
[1744689104438,12.52614684,130.4,130.37,36.96487734]
[1744689106338,7.6709,130.39,130.37,29.29327734]
[1744689106539,12.4684723,130.39,130.37,29.29327734]
[1744689107642,7.6709,130.39,130.37,29.29327734]
[1744689111243,7.6712,130.38,130.37,0.05327734]
[1744689111443,12.4687723,130.38,130.37,0.05327734]
[1744689120951,7.6735,130.35,130.32,7.6744]
[1744689121148,4.7975723,130.35,130.31,29.22]
[1744689121450,7.6739,130.34,130.31,36.895]
[1744689122151,0.04917802,130.34,130.33,12.4713723]
[1744689123748,0.04917802,130.34,130.32,4.7975723]
[1744689123949,0.04917802,130.34,130.31,34.07623633]
[1744689124154,4.84675032,130.34,130.31,29.27866403]
[1744689124654,12.52065032,130.34,130.31,29.27866403]
[1744689126654,0.04917802,130.34,130.31,34.07623633]
[1744689126853,0.04917802,130.34,130.32,4.7975723]
[1744689127154,0.04917802,130.34,130.33,7.6742]
[1744689127553,0.04917802,130.34,130.32,4.7975723]
[1744689127755,0.04917802,130.34,130.32,12.4717723]
[1744689127955,0.04917802,130.34,130.32,4.7975723]
[1744689128656,0.04917802,130.34,130.32,7.6748]
[1744689129757,4.84675032,130.34,130.31,29.27866403]
[1744689130259,7.6744,130.33,130.31,29.27866403]
[1744689131053,12.52065032,130.34,130.31,29.27866403]
[1744689131660,0.04917802,130.34,130.31,29.27866403]
[1744689131862,0.04917802,130.34,130.31,34.07623633]
[1744689132259,0.04917802,130.34,130.32,7.6744]
[1744689134566,0.04917802,130.34,130.33,7.6742]
[1744689152976,4.7975723,130.4,130.33,4.7975723]
[1744689153175,6.2213,130.45,130.38,4.7975723]
[1744689153380,7.6675,130.45,130.41,12.4666723]
[1744689153577,4.7975723,130.45,130.4,4.7975723]
[1744689154080,7.72005492,130.44,130.41,0.0573176]
[1744689154279,12.51762722,130.44,130.41,0.0573176]
[1744689154579,4.84962722,130.44,130.41,7.7264176]
[1744689155176,0.05205492,130.44,130.41,7.7264176]
[1744689155480,0.05205492,130.44,130.41,36.9064176]
[1744689158579,12.4658723,130.43,130.41,0.0573176]
[1744689158785,4.7975723,130.42,130.41,0.0573176]
[1744689159282,12.4664723,130.42,130.41,0.0573176]
[1744689163984,12.4660723,130.43,130.41,0.0573176]
[1744689167291,12.51742722,130.44,130.41,0.0573176]
[1744689167488,7.71985492,130.44,130.41,0.0573176]
[1744689168195,7.71985492,130.44,130.41,7.7264176]
[1744689168594,7.71985492,130.44,130.41,36.9064176]
[1744689170098,0.05205492,130.44,130.41,36.9064176]